bitfinex/quotes_ETHUSD_20251130
["timestamp","ask_amount","ask_price","bid_price","bid_amount"]
[1764535176976,4.33353124,3028.1,3028.0,0.9448]
[1764535177285,5.32564558,3028.1,3028.0,0.9448]
[1764535177591,9.97183867,3028.1,3027.7,0.4569]
[1764535177754,1.03113026,3028.0,3027.7,0.4569]
[1764535178155,4.33364016,3028.0,3027.9,0.4879]
[1764535178480,0.32873016,3027.7,3027.5,0.209]
[1764535178681,0.7024001,3027.9,3027.5,0.4569]
[1764535178897,0.7024001,3027.9,3027.6,0.4879]
[1764535179200,0.4569,3027.8,3027.5,0.4569]
[1764535179361,0.78563016,3027.8,3027.5,0.4569]
[1764535179709,0.78563016,3027.8,3027.7,0.4879]
[1764535179884,0.32873016,3027.8,3027.7,0.4879]
[1764535180375,4.11935821,3027.8,3027.7,0.4879]
[1764535180556,4.82175831,3027.8,3027.7,0.4879]
[1764535186559,4.82175831,3027.8,3027.7,0.9448]
[1764535188485,4.49302815,3027.8,3027.7,0.9448]
[1764535190003,1.1903001,3027.8,3027.7,0.9448]
[1764535190224,0.87907775,3028.0,3027.7,0.9448]
[1764535190225,0.7024001,3027.9,3027.7,0.9448]
[1764535190363,0.7024001,3027.8,3027.4,0.405504]
[1764535190572,1.694521,3027.9,3027.5,0.39177348]
[1764535190883,0.7024001,3027.8,3027.5,0.39177348]
[1764535191078,0.7024001,3027.8,3027.6,0.209]
[1764535191279,0.7024001,3027.7,3027.6,0.209]
[1764535191894,0.7024001,3027.7,3027.6,0.6969]
[1764535192122,0.7024001,3027.7,3027.6,1.1538]
[1764535193776,0.7024001,3027.7,3027.6,0.9448]
[1764535194087,0.7024001,3027.7,3027.6,1.1538]
[1764535194777,0.7024001,3027.7,3027.6,1.1752]
[1764535195997,0.7044001,3027.7,3027.6,1.1752]
[1764535196298,1.58347785,3027.7,3027.6,1.1752]
[1764535196596,4.88631498,3027.7,3027.6,1.1752]
[1764535196898,4.00723723,3027.7,3027.6,1.1752]
[1764535197194,5.67864957,3027.7,3027.6,0.209]
[1764535198089,6.00737973,3027.7,3027.6,0.209]
[1764535198895,9.31021686,3027.7,3027.2,0.4783]
[1764535199192,1.51131608,3027.3,3027.0,0.23353714]
[1764535199381,1.88128602,3027.2,3027.0,0.23353714]
[1764535199693,0.7024001,3027.1,3027.0,0.71183714]
[1764535199865,1.1242001,3027.1,3027.0,0.23353714]
[1764535200071,4.98673065,3027.1,3027.0,0.02453714]
[1764535200294,4.23620049,3027.1,3027.0,0.49023714]
[1764535200595,4.65800049,3027.1,3027.0,0.02453714]
[1764535200769,7.20086102,3027.1,3027.0,0.02453714]
[1764535201074,7.20086102,3027.1,3026.4,0.209]
[1764535201075,11.71648407,3027.1,3026.4,0.209]
[1764535201275,1.50840447,3026.6,3026.4,0.209]
[1764535201475,0.7024001,3026.5,3026.3,0.209]
[1764535201674,0.4222,3026.3,3025.7,0.1934]
[1764535201988,0.8844428,3026.0,3025.8,0.6873]
[1764535202168,0.8844428,3026.1,3025.9,0.4783]
[1764535202492,0.70757595,3026.0,3025.9,0.4783]
[1764535202693,0.70757595,3026.0,3025.9,0.944]
[1764535202895,0.8844428,3026.5,3026.0,3.8582657]
[1764535203103,0.8844428,3026.5,3026.3,3.4527617]
[1764535203305,0.8844428,3026.5,3026.4,0.8596]
[1764535203807,0.8844428,3026.5,3026.4,1.743404]
[1764535204189,0.8844428,3026.6,3026.4,1.743404]
[1764535204484,0.8844428,3026.7,3026.6,0.871204]
[1764535204682,0.8844428,3026.7,3026.6,0.405504]
[1764535204884,0.8844428,3026.7,3026.6,1.349504]
[1764535205802,1.17925706,3026.8,3026.6,0.6747]
[1764535205978,0.88473814,3026.7,3026.6,0.209]
[1764535206178,0.88473814,3026.7,3026.5,0.50477184]
[1764535206381,1.17925706,3026.8,3026.6,0.6747]
[1764535206585,1.17925706,3026.8,3026.6,0.209]
[1764535206900,1.17925706,3026.8,3026.7,0.944]
[1764535207123,4.48297783,3026.9,3026.7,0.944]
[1764535207307,4.48297783,3026.9,3026.8,0.4657]
[1764535207501,4.48297783,3026.9,3026.8,0.944]
[1764535207696,4.48297783,3026.9,3026.8,1.153]
[1764535207891,1.17925706,3026.9,3026.8,1.153]
[1764535208502,4.48296712,3026.9,3026.8,1.153]
[1764535208908,1.17925706,3026.9,3026.8,1.153]
[1764535209791,1.17925706,3026.9,3026.8,0.6747]
[1764535210101,0.88448177,3027.0,3026.8,1.56574617]
[1764535210306,0.88448177,3027.0,3026.9,0.4783]
[1764535210518,0.88448177,3027.0,3026.9,0.944]
[1764535212111,0.88448177,3027.1,3026.9,1.349504]
[1764535212316,0.88448177,3027.2,3027.0,0.4783]
[1764535212826,0.88448177,3027.2,3027.1,0.6506]
[1764535213620,0.88448177,3027.2,3027.1,0.209]
[1764535213621,3.72558266,3027.2,3027.1,0.209]
[1764535214919,4.4332283,3027.2,3027.1,0.209]
[1764535215423,4.33975846,3027.2,3027.1,0.209]
[1764535215927,4.0110283,3027.2,3027.1,0.209]
[1764535216428,4.33975846,3027.2,3027.1,0.209]
[1764535217128,5.22433239,3027.2,3027.1,0.209]
[1764535217326,1.59221957,3027.2,3027.1,1.3379]
[1764535217526,1.59221957,3027.2,3027.1,0.6747]
[1764535217527,4.89560223,3027.2,3027.1,0.6747]
[1764535218434,5.39500223,3027.2,3027.1,0.209]
[1764535219501,5.77010223,3027.2,3027.1,0.209]
[1764535219910,5.39500223,3027.2,3027.1,0.209]
[1764535220112,4.5104283,3027.2,3027.1,0.209]
[1764535220722,8.18891096,3027.2,3026.7,0.405504]
[1764535220922,1.9212552,3027.1,3027.0,0.209]
[1764535221300,1.20584564,3027.1,3026.6,0.4783]
[1764535221525,1.59265415,3027.0,3026.7,0.209]
[1764535221724,0.70764564,3026.9,3026.7,0.209]
[1764535221931,0.70764564,3026.8,3026.6,0.4783]
[1764535222100,0.70764564,3026.7,3026.6,0.4783]
[1764535222300,0.70764564,3026.7,3026.6,0.6873]
[1764535222506,0.70764564,3026.7,3026.6,1.153]
[1764535229616,0.70764564,3026.7,3026.6,6.09288924]
[1764535229909,0.88500851,3027.2,3026.9,0.405504]
[1764535230105,0.88500851,3027.3,3027.1,0.6705]
[1764535230440,0.70873708,3027.2,3027.1,3.89080723]
[1764535230751,0.70873708,3027.2,3027.1,4.69147412]
[1764535230906,0.70873708,3027.2,3027.1,5.50871478]
[1764535231105,0.70873708,3027.2,3027.1,5.96281478]
[1764535231336,0.002,3027.4,3027.2,0.405504]
[1764535231538,0.002,3027.4,3027.3,0.894104]
[1764535231736,0.7106799,3027.4,3027.3,1.78787059]
[1764535231939,0.002,3027.4,3027.3,2.57061125]
[1764535232243,0.002,3027.4,3027.3,5.87388479]
[1764535233337,0.002,3027.4,3027.3,6.5994789]
[1764535233637,0.002,3027.4,3027.3,6.8084789]
[1764535236308,0.002,3027.4,3027.3,6.47983824]
[1764535236534,0.002,3027.4,3027.3,6.5994789]
[1764535236743,0.002,3027.4,3027.3,6.8084789]
[1764535239037,0.002,3027.4,3027.3,10.6584789]
[1764535244033,0.002,3027.4,3027.3,6.8084789]
[1764535248451,0.002,3027.4,3027.3,6.5994789]
[1764535248652,0.002,3027.4,3027.3,6.8084789]
[1764535250825,0.002,3027.4,3027.3,6.47983824]
[1764535251020,0.002,3027.4,3027.3,6.8084789]
[1764535253053,0.002,3027.4,3027.3,6.5966789]
[1764535253357,0.002,3027.4,3027.3,10.2584406]
[1764535253553,0.002,3027.4,3027.3,6.8056789]
[1764535254157,0.002,3027.4,3027.3,6.3543789]
[1764535254352,0.002,3027.4,3027.3,6.8056789]
[1764535260265,0.002,3027.4,3027.3,9.92979994]
[1764535260560,0.002,3027.7,3027.6,0.73414466]
[1764535260763,0.71184311,3027.7,3027.6,8.85056217]
[1764535260964,0.002,3027.7,3027.6,19.0998668]
[1764535261265,0.002,3027.8,3027.6,19.0998668]
[1764535261458,0.002,3027.8,3027.7,11.38572477]
[1764535261635,0.002,3027.8,3027.7,14.6885619]
[1764535263254,0.002,3028.1,3027.7,21.29423616]
[1764535263457,0.88584853,3028.7,3028.1,0.73414466]
[1764535263668,0.88584853,3028.7,3028.6,4.19265964]
[1764535263866,0.71003088,3028.7,3028.6,4.40165964]
[1764535264165,0.71003088,3028.7,3028.6,7.36912134]
[1764535264166,1.09533088,3028.7,3028.6,7.36912134]
[1764535264357,1.09533088,3028.7,3028.6,7.36218077]
[1764535265165,1.09533088,3028.7,3028.6,0.405504]
[1764535265466,1.57913088,3028.7,3028.0,3.44582113]
[1764535265768,1.57913088,3028.7,3027.7,0.4513]
[1764535265769,0.0048,3028.4,3028.1,0.209]
[1764535265974,0.71003088,3028.3,3028.2,0.209]
[1764535266265,1.19483088,3028.3,3028.2,0.209]
[1764535266566,1.57533088,3028.3,3028.2,0.209]
[1764535267746,1.57533088,3028.3,3027.9,0.72559411]
[1764535267947,0.4759,3028.0,3027.9,4.9797439]
[1764535268154,0.4759,3028.0,3027.9,8.49132107]
[1764535273964,0.002,3028.3,3028.0,0.405504]
[1764535274273,0.002,3028.3,3028.2,4.33662513]
[1764535274575,0.002,3028.3,3028.2,5.5473599]
[1764535274762,0.002,3028.3,3028.2,6.59852589]
[1764535275555,0.002,3028.7,3028.4,0.73414466]
[1764535275766,0.002,3028.7,3028.6,3.93112113]
[1764535276286,0.002,3028.7,3028.6,7.23297677]
[1764535276472,0.002,3028.7,3028.6,7.68427677]
[1764535276674,0.002,3028.7,3028.6,8.84435134]
[1764535278657,0.002,3028.7,3028.6,9.24985534]
[1764535278858,0.002,3028.7,3028.6,10.30409011]
[1764535280580,0.002,3028.7,3028.6,9.85279011]
[1764535280887,0.002,3028.7,3028.6,9.52414945]
[1764535283691,0.002,3028.7,3028.6,9.73314945]
[1764535283987,0.3888,3028.7,3028.6,9.73314945]
[1764535284572,0.3888,3028.7,3028.6,9.24784945]
[1764535285282,0.3888,3028.7,3028.6,8.08777488]
[1764535285283,0.854,3028.7,3028.6,8.08777488]
[1764535287684,0.854,3028.7,3028.6,4.78591924]
[1764535287854,0.854,3028.7,3028.6,1.13109811]
[1764535288058,0.854,3028.7,3028.6,1.34009811]
[1764535288259,0.854,3028.7,3028.6,4.64195375]
[1764535288459,0.854,3028.7,3028.6,1.34009811]
[1764535288660,0.854,3028.7,3028.6,4.64195375]
[1764535289679,0.854,3028.7,3028.6,0.614504]
[1764535292364,0.854,3028.7,3028.3,3.44682113]
[1764535292565,1.0831793,3028.6,3028.4,0.614504]
[1764535292787,0.3752,3028.6,3028.4,0.614504]
[1764535292990,0.8659,3028.5,3028.4,0.614504]
[1764535294861,0.8659,3028.5,3028.3,0.001]
[1764535295195,3.30381081,3028.7,3028.3,0.001]
[1764535295196,0.4692,3028.4,3028.3,0.001]
[1764535295363,0.4692,3028.4,3028.3,0.615504]
[1764535295565,0.4692,3028.4,3028.3,0.406504]
[1764535295766,0.4692,3028.4,3028.3,0.001]
[1764535296068,0.4692,3028.4,3028.3,0.21]
[1764535296892,0.004,3028.4,3028.3,0.21]
[1764535297469,0.71193417,3028.4,3028.3,0.21]
[1764535297672,0.004,3028.4,3028.3,0.21]
[1764535297986,0.71193417,3028.4,3028.3,0.21]
[1764535298166,0.4692,3028.4,3028.3,0.21]
[1764535298366,1.17713417,3028.4,3028.3,0.21]
[1764535298591,0.71193417,3028.4,3028.3,0.615504]
[1764535298762,0.70793417,3028.6,3028.3,1.074404]
[1764535298962,0.70793417,3028.5,3028.3,7.82240423]
[1764535299267,0.002,3028.7,3028.6,0.864404]
[1764535299468,0.70994769,3028.7,3028.6,0.864404]
[1764535299698,1.11064769,3028.7,3028.6,0.405504]
[1764535300197,0.002,3028.7,3028.6,4.76552513]
[1764535300395,0.002,3028.7,3028.6,5.5707183]
[1764535300780,0.002,3028.7,3028.6,8.87257394]
[1764535305498,0.002,3028.7,3028.6,9.08157394]
[1764535306279,0.002,3028.7,3028.6,14.45109305]
[1764535307069,0.002,3029.0,3028.9,0.32864066]
[1764535307276,0.002,3029.4,3029.2,0.405504]
[1764535309870,0.002,3029.9,3029.8,7.576066]
[1764535310073,0.002,3029.9,3029.8,9.55909803]
[1764535310474,0.002,3029.9,3029.8,7.09347103]
[1764535311299,0.002,3029.9,3029.8,6.47662458]
[1764535311501,0.002,3029.9,3029.8,6.68562458]
[1764535311876,0.002,3029.9,3029.8,7.14092458]
[1764535312905,0.002,3029.9,3029.8,6.68562458]
[1764535313295,0.002,3029.9,3029.8,5.89808392]
[1764535313690,0.002,3029.9,3029.8,6.75763005]
[1764535314004,0.002,3029.9,3029.8,6.72462458]
[1764535314580,0.002,3029.9,3029.8,7.18942458]
[1764535314778,0.002,3029.9,3029.8,6.72462458]
[1764535315016,0.3746,3029.9,3029.8,6.01772458]
[1764535315308,0.3746,3029.9,3029.8,10.06949916]
[1764535315682,0.491,3029.9,3029.8,10.06949916]
[1764535316078,0.002,3029.9,3029.8,10.06949916]
[1764535316274,0.002,3029.9,3029.8,10.56739916]
[1764535317201,0.002,3029.9,3029.8,10.89603982]
[1764535318917,0.002,3029.9,3029.8,10.39813982]
[1764535319813,0.002,3029.9,3029.8,10.89603982]
[1764535320016,0.002,3029.9,3029.8,11.03219916]
[1764535320202,0.002,3029.9,3029.8,11.36083982]
[1764535321341,0.002,3029.9,3029.8,10.56739916]
[1764535321499,0.002,3029.9,3029.8,10.35839916]
[1764535321686,0.848,3029.9,3029.8,6.62367803]
[1764535321891,1.0312,3029.9,3029.4,3.85]
[1764535322238,0.1852,3029.9,3029.5,0.209]
[1764535322387,0.1852,3029.9,3029.8,0.405504]
[1764535322587,0.5734,3029.9,3029.8,0.405504]
[1764535322998,0.002,3029.9,3029.8,0.405504]
[1764535323225,0.002,3029.9,3029.8,0.903404]
[1764535323385,0.002,3029.9,3029.8,1.41767058]
[1764535323590,0.002,3029.9,3029.8,2.21111124]
[1764535323797,0.002,3029.9,3029.8,6.23725324]
[1764535324519,0.002,3029.9,3029.8,9.67958403]
[1764535326891,0.002,3029.9,3029.8,9.35094337]
[1764535327096,0.002,3029.9,3029.8,12.16388703]
[1764535327502,0.002,3029.9,3029.8,8.88614337]
[1764535327707,0.002,3029.9,3029.8,8.69818992]
[1764535330130,1.047,3029.9,3029.8,4.05683479]
[1764535330327,1.047,3029.9,3029.8,7.35738268]
[1764535331218,1.047,3029.9,3029.8,4.05683479]
[1764535331738,1.047,3029.9,3029.8,7.35738268]
[1764535333653,1.047,3029.9,3029.8,4.05683479]
[1764535334609,1.047,3029.9,3029.8,7.35738268]
[1764535335236,1.047,3029.9,3029.8,3.84783479]
[1764535335449,1.047,3029.9,3029.8,4.05683479]
[1764535336738,1.047,3029.9,3029.8,7.35738268]
[1764535337262,1.047,3029.9,3029.8,4.05683479]
[1764535337461,1.047,3029.9,3029.8,3.84783479]
[1764535337630,1.047,3029.9,3029.8,7.35738268]
[1764535338832,1.047,3029.9,3029.8,0.405504]
[1764535339168,1.047,3029.9,3029.8,0.614504]
[1764535339748,1.755663,3029.9,3029.8,0.614504]
[1764535342069,2.26145762,3029.9,3029.8,0.614504]
[1764535342479,5.56190328,3029.9,3029.6,0.001]
[1764535342681,3.48564566,3029.9,3029.8,0.209]
[1764535342982,0.4865,3029.7,3029.6,0.001]
[1764535343151,1.19508302,3029.7,3029.6,0.21]
[1764535343484,2.40713045,3029.7,3029.6,0.21]
[1764535347486,1.57138302,3029.7,3029.6,0.21]
[1764535348186,0.70858302,3029.7,3029.6,0.21]
[1764535348385,1.11268302,3029.7,3029.6,0.21]
[1764535348784,1.57048302,3029.7,3029.6,0.21]
[1764535354905,1.57048302,3029.7,3029.6,0.001]
[1764535355115,1.57048302,3029.7,3029.6,0.21]
[1764535355116,5.04670815,3029.7,3029.6,0.21]
[1764535355285,1.74605132,3029.7,3029.6,0.21]
[1764535356778,5.04670815,3029.7,3029.6,0.21]
[1764535358511,5.04670815,3029.7,3029.6,0.001]
[1764535358711,5.04670815,3029.7,3029.6,0.21]
[1764535358940,1.74605132,3029.7,3029.6,0.21]
[1764535359810,5.04670815,3029.7,3029.6,0.21]
[1764535361950,1.74605132,3029.7,3029.6,0.21]
[1764535362135,1.57048302,3029.7,3029.6,0.21]
[1764535362334,4.87113985,3029.7,3029.6,0.21]
[1764535362543,1.57048302,3029.7,3029.6,0.21]
[1764535363845,1.57048302,3029.7,3029.6,0.001]
[1764535364017,1.57048302,3029.7,3029.6,0.21]
[1764535364018,4.87113985,3029.7,3029.6,0.21]
[1764535366163,1.57048302,3029.7,3029.6,0.21]
[1764535366676,1.57048302,3029.7,3029.6,0.209]
[1764535369377,2.45570556,3029.7,3029.6,0.209]
[1764535370675,5.75636239,3029.7,3029.6,0.209]
[1764535370974,6.83137249,3029.7,3029.6,0.209]
[1764535371541,3.53071566,3029.7,3029.6,0.209]
[1764535372580,1.99790556,3029.7,3029.6,0.209]
[1764535374593,2.45570556,3029.7,3029.6,0.209]
[1764535375664,5.75636239,3029.7,3029.6,0.209]
[1764535376886,4.87313985,3029.7,3029.6,0.209]
[1764535377387,5.76010076,3029.7,3029.6,0.209]
[1764535378389,4.87313985,3029.7,3029.6,0.209]
[1764535380336,4.87313985,3029.7,3029.6,0.001]
[1764535380502,7.61735817,3029.7,3029.6,0.001]
[1764535380708,6.2543507,3029.7,3029.6,0.001]
[1764535381018,8.0284334,3029.7,3029.6,0.001]
[1764535381195,8.35716356,3029.7,3029.6,0.001]
[1764535381391,8.0284334,3029.7,3029.6,0.001]
[1764535381617,6.2543507,3029.7,3029.6,0.001]
[1764535381816,6.58308086,3029.7,3029.6,0.001]
[1764535382212,6.2543507,3029.7,3029.6,0.001]
[1764535382697,6.58308086,3029.7,3029.6,0.001]
[1764535383123,6.2543507,3029.7,3029.6,0.001]
[1764535383498,5.7965507,3029.7,3029.6,0.001]
[1764535384011,6.2543507,3029.7,3029.6,0.001]
[1764535385638,6.58308086,3029.7,3029.6,0.001]
[1764535386543,5.7965507,3029.7,3029.6,0.001]
[1764535386842,0.71058302,3029.7,3029.6,0.4825]
[1764535389132,0.71058302,3029.7,3029.6,0.9611]
[1764535389741,1.596973,3029.7,3029.6,0.9611]
[1764535391353,1.596973,3029.7,3029.6,0.4825]
[1764535395316,1.596973,3029.7,3029.6,0.9611]
[1764535395511,0.71058302,3029.7,3029.6,0.9611]
[1764535396129,0.71058302,3029.7,3029.6,0.4825]
[1764535397052,5.75012983,3029.7,3029.6,0.001]
[1764535397221,5.26872983,3029.7,3029.6,0.209]
[1764535397547,1.968073,3029.7,3029.6,0.209]
[1764535398051,5.75012983,3029.7,3029.6,0.209]
[1764535398250,6.04547671,3029.7,3029.6,0.001]
[1764535398460,6.25447671,3029.7,3029.6,0.001]
[1764535398624,7.41879074,3029.7,3029.6,0.001]
[1764535399238,5.75565388,3029.7,3029.6,0.001]
[1764535399440,2.93639705,3029.7,3029.6,0.001]
[1764535399762,0.71058302,3029.7,3029.6,0.4825]
[1764535400128,0.71058302,3029.7,3029.6,0.9611]
[1764535400358,0.71058302,3029.7,3029.6,0.4825]
[1764535400670,1.5968271,3029.7,3029.6,0.4825]
[1764535400829,1.5968271,3029.7,3029.6,0.001]
[1764535401027,5.26858393,3029.7,3029.6,0.001]
[1764535401760,1.9679271,3029.7,3029.6,0.001]
[1764535402867,1.5968271,3029.7,3029.6,0.4992]
[1764535403658,5.26858393,3029.7,3029.6,0.001]
[1764535403961,5.26858393,3029.7,3029.6,0.209]
[1764535405367,5.26858393,3029.7,3029.6,0.001]
[1764535405532,5.26858393,3029.7,3029.6,0.209]
[1764535406560,5.72498393,3029.7,3029.6,0.209]
[1764535407061,2.4243271,3029.7,3029.6,0.209]
[1764535407265,5.72498393,3029.7,3029.6,0.209]
[1764535407634,5.26858393,3029.7,3029.6,0.209]
[1764535407846,5.72498393,3029.7,3029.6,0.209]
[1764535410369,4.83873985,3029.7,3029.6,0.209]
[1764535410664,1.08168302,3029.7,3029.6,0.209]
[1764535411040,0.71058302,3029.7,3029.6,0.209]
[1764535411370,0.71058302,3029.7,3029.6,0.6845]
[1764535412759,0.71058302,3029.7,3029.6,1.1464]
[1764535413845,0.71058302,3029.7,3029.6,4.89530079]
[1764535417505,0.71058302,3029.7,3029.6,1.59453502]
[1764535421075,0.71058302,3029.7,3029.6,0.92463502]
[1764535421378,0.71058302,3029.7,3029.6,1.13263502]
[1764535421776,0.71058302,3029.7,3029.6,1.59453502]
[1764535425183,0.71058302,3029.7,3029.6,1.1464]
[1764535426484,0.71115569,3029.7,3029.6,1.1464]
[1764535427055,0.71115569,3029.7,3029.6,0.6845]
[1764535428382,1.10595569,3029.7,3029.6,0.209]
[1764535429385,0.71115569,3029.7,3029.6,0.209]
[1764535429590,0.71115569,3029.7,3029.6,0.6845]
[1764535429758,0.71115569,3029.7,3029.6,1.1464]
[1764535430300,0.71115569,3029.7,3029.6,0.4765]
[1764535430659,0.71115569,3029.7,3029.6,0.6845]
[1764535432666,0.71115569,3029.7,3029.6,1.58193769]
[1764535434471,0.71115569,3029.7,3029.6,1.1371]
[1764535439008,0.71115569,3029.7,3029.6,0.6845]
[1764535439207,4.86041252,3029.7,3029.6,0.001]
[1764535439507,1.59760031,3029.7,3029.6,0.7029]
[1764535439711,0.71115569,3029.7,3029.6,0.7029]
[1764535440514,1.59760031,3029.7,3029.6,0.7029]
[1764535441684,1.59760031,3029.7,3029.6,0.209]
[1764535442614,5.28735714,3029.7,3029.6,0.209]
[1764535442786,1.98670031,3029.7,3029.6,0.209]
[1764535443809,1.98670031,3029.7,3029.6,0.001]
[1764535444021,1.98670031,3029.7,3029.6,0.209]
[1764535448525,1.98827054,3029.7,3029.6,0.209]
[1764535448933,2.44677054,3029.7,3029.6,0.209]
[1764535455563,1.59917054,3029.7,3029.6,0.7029]
[1764535455767,0.71185357,3029.7,3029.6,1.1555]
[1764535458367,1.59917054,3029.7,3029.6,1.1555]
[1764535460370,0.71185357,3029.7,3029.6,1.1555]
[1764535460862,2.08587054,3029.7,3029.6,0.209]
[1764535463259,2.44777054,3029.7,3029.6,0.209]
[1764535465074,1.59917054,3029.7,3029.6,0.67]
[1764535471677,1.97007054,3029.7,3029.6,0.209]
[1764535472059,1.59917054,3029.7,3029.6,0.67]
[1764535482590,1.97007054,3029.7,3029.6,0.209]
[1764535482887,2.45677054,3029.7,3029.6,0.209]
[1764535484466,2.45677054,3029.7,3029.6,0.001]
[1764535484668,2.45677054,3029.7,3029.6,0.209]
[1764535485196,1.56945357,3029.7,3029.6,0.001]
[1764535485400,1.08275357,3029.7,3029.6,0.209]
[1764535485576,1.59908259,3029.7,3029.6,3.6536275]
[1764535485781,0.71185357,3029.7,3029.6,4.1146275]
[1764535489104,0.71185357,3029.7,3029.6,4.5714275]
[1764535489972,1.59908259,3029.7,3029.6,4.5714275]
[1764535490898,1.59908259,3029.7,3029.6,4.1146275]
[1764535494672,1.59908259,3029.7,3029.6,0.67]
[1764535494878,1.59908259,3029.7,3029.6,1.1365]
[1764535495200,1.59908259,3029.7,3029.6,8.32572918]
[1764535495407,1.59908259,3029.7,3029.6,8.65436984]
[1764535496793,0.71185357,3029.7,3029.6,8.65436984]
[1764535499307,0.71167387,3029.7,3029.6,8.65436984]
[1764535500583,0.71167387,3029.7,3029.6,8.32572918]
[1764535500784,0.71167387,3029.7,3029.6,0.001]
[1764535500785,5.75222304,3029.7,3029.6,0.001]
[1764535500979,5.85673675,3029.7,3029.6,0.001]
[1764535501713,0.72559411,3029.6,3029.5,0.001]
[1764535501915,1.89526798,3029.6,3029.5,0.001]
[1764535502103,3.66842241,3029.6,3029.5,0.001]
[1764535502291,3.63489912,3029.6,3029.5,0.001]
[1764535502498,8.7075645,3029.6,3029.5,0.001]
[1764535502699,8.83979175,3029.6,3029.5,0.001]
[1764535503804,7.06789214,3029.6,3029.5,0.001]
[1764535506417,5.55746787,3029.6,3029.5,0.001]
[1764535506619,0.84580112,3029.6,3029.5,0.001]
[1764535507007,1.30190112,3029.6,3029.5,0.001]
[1764535507598,4.60266689,3029.6,3029.5,0.001]
[1764535508517,5.48749797,3029.6,3029.5,0.001]
[1764535511303,5.48949797,3029.6,3029.5,0.001]
[1764535513186,2.1887322,3029.6,3029.5,0.001]
[1764535513390,2.1887322,3029.6,3029.5,0.4874]
[1764535513391,0.84390112,3029.6,3029.5,0.4874]
[1764535513591,0.84390112,3029.6,3029.5,0.9539]
[1764535515001,0.84390112,3029.6,3029.5,0.4874]
[1764535515202,1.69610112,3029.6,3029.5,0.001]
[1764535516117,1.24050112,3029.6,3029.5,0.001]
[1764535516492,0.84390112,3029.6,3029.5,0.4874]
[1764535517326,0.84390112,3029.6,3029.5,1.4002982]
[1764535518035,0.71167387,3029.6,3029.5,1.4002982]
[1764535518201,0.91717387,3029.6,3029.5,0.001]
[1764535518400,0.71167387,3029.6,3029.5,0.001]
[1764535518725,0.71167387,3029.6,3029.5,0.4874]
[1764535519829,0.71167387,3029.6,3029.5,12.262953]
[1764535520041,0.002,3029.9,3029.8,2.901384]
[1764535520195,0.002,3029.9,3029.8,8.90035138]
[1764535520395,0.002,3029.9,3029.8,9.03821072]
[1764535520629,0.002,3029.9,3029.8,9.17035934]
[1764535520818,0.002,3029.9,3029.8,10.45032604]
[1764535521136,0.002,3029.9,3029.8,17.8767317]
[1764535521425,0.002,3029.9,3029.8,17.54809104]
[1764535521596,0.002,3029.9,3029.8,17.6575407]
[1764535522132,0.002,3029.9,3029.8,17.5395317]
[1764535522293,0.002,3029.9,3029.8,14.2970907]
[1764535522996,0.002,3029.9,3029.8,13.0125737]
[1764535523223,0.002,3030.1,3030.0,5.89207577]
[1764535523398,0.002,3030.1,3030.0,8.20908093]
[1764535523597,0.002,3030.1,3030.0,8.69288093]
[1764535524224,0.002,3030.1,3030.0,21.36601293]
[1764535524395,0.002,3030.1,3030.0,23.41627596]
[1764535525136,0.002,3030.1,3030.0,23.11747596]
[1764535525317,0.002,3030.3,3030.2,0.405504]
[1764535525510,0.002,3030.3,3030.2,21.38235629]
[1764535525712,0.002,3030.3,3030.2,19.61606929]
[1764535526033,0.002,3030.3,3030.2,9.74906491]
[1764535526199,0.002,3030.3,3030.2,3.03037619]
[1764535526410,0.002,3030.3,3030.2,2.71594591]
[1764535526735,0.002,3030.3,3030.2,0.6754]
[1764535527736,0.002,3030.3,3030.2,3.9755122]
[1764535528935,0.002,3030.3,3030.2,0.6754]
[1764535529236,0.002,3030.3,3030.2,4.4593122]
[1764535529399,0.002,3030.3,3030.2,4.28431332]
[1764535529603,0.002,3030.3,3030.2,5.68110848]
[1764535530102,0.002,3030.3,3030.2,1.89719628]
[1764535530333,0.3686,3030.3,3030.2,1.39679516]
[1764535530633,0.8497,3030.3,3030.2,0.208]
[1764535531334,0.7372,3030.3,3030.2,0.208]
[1764535531706,1.2183,3030.3,3030.2,0.208]
[1764535532199,0.7372,3030.3,3030.2,0.208]
[1764535533638,0.3706,3030.3,3030.2,0.6754]
[1764535534136,0.7372,3030.3,3030.2,0.208]
[1764535541424,1.2183,3030.3,3030.2,0.208]
[1764535542740,0.7372,3030.3,3030.2,0.208]
[1764535542946,0.7372,3030.3,3030.2,3.5081122]
[1764535543310,0.002,3030.3,3030.2,4.4593122]
[1764535543515,0.002,3030.3,3030.2,5.58313221]
[1764535547545,0.002,3030.3,3030.2,5.71528345]
[1764535547749,0.002,3030.3,3030.2,5.23148345]
[1764535548243,0.002,3030.3,3030.2,5.02348345]
[1764535548445,0.002,3030.3,3030.2,4.10766344]
[1764535550132,0.3686,3030.3,3030.2,0.13215124]
[1764535550345,1.55661806,3030.3,3030.2,0.208]
[1764535550860,1.07551806,3030.3,3030.0,0.001]
[1764535551059,0.3499,3030.2,3030.1,0.208]
[1764535551443,0.8475,3030.2,3030.1,0.208]
[1764535552033,0.4976,3030.2,3030.1,0.208]
[1764535552463,1.84024237,3030.2,3030.1,0.208]
[1764535552637,0.002,3030.3,3030.1,4.48492111]
[1764535552844,0.7107809,3030.3,3030.2,0.4886]
[1764535553066,1.70202327,3030.3,3030.2,0.4886]
[1764535553264,1.70202327,3030.3,3030.2,3.93426472]
[1764535553563,0.7107809,3030.3,3030.2,8.05111758]
[1764535554775,0.7107809,3030.3,3030.2,7.56301758]